Cogmind - Beta 13 @@@ ROGUE MODE // 2024.04.08 @ 20:12:38 Player: mehbruh Result: Core destroyed Performance ------------- Evolutions (0) 0 Regions Visited (3) 600 Robots Destroyed (26) 130 Value Destroyed (487) 487 Prototype IDs (0) 0 Alien Tech Used (0) 0 Bonus (35) 35 TOTAL SCORE: 1252 Bonus ------- Follower Combat Kills 35 Cogmind --------- Core Integrity 0/250 Matter 278/300 Energy 100/100 System Corruption 23% Temperature Cool (0) Movement Core (450) Ox8 Location -10/Exiles Parts ------- > --- POWER (1) -------- Ion Engine > --- PROPULSION (2) --- Light Treads Light Treads > --- UTILITY (2) ------ Improved Heat Sink Large Storage Unit > --- WEAPON (2) ------- (None) > --- INVENTORY (15) --- Light Treads Light Treads Light Treads Wheel Heat Sink High-capacity Matter Pod (200) Light Armor Plating Beam Cannon Beam Cannon Beam Cannon Beam Cannon Assault Rifle Assault Rifle Rocket Launcher Rocket Launcher Peak State ------------ > --- POWER ------------ Ion Engine > --- PROPULSION ------- Light Treads Light Treads > --- UTILITY ---------- Improved Heat Sink Large Storage Unit > --- WEAPON ----------- Small Laser Light Assault Rifle > --- INVENTORY -------- Ion Engine Light Treads Light Treads Light Treads Wheel Heat Sink Small Laser Beam Cannon Rocket Launcher [Rating: 10] Favorites ----------- Power Ion Engine Engine Ion Engine Propulsion Light Treads Treads Light Treads Utility Improved Heat Sink Device Improved Heat Sink Storage Large Storage Unit Weapon Assault Rifle Energy Gun Small Laser Energy Cannon Beam Cannon Ballistic Gun Assault Rifle Build | -11 -10 -10 -10 ------- Run | Yrd Mat Min Exi Slots Evolved . | . . . . Power . | . . . . Propulsion . | . . . . Utility . | . . . . Weapon . | . . . . Parts Attached 20 | 6 13 1 . Power 3 | 1 1 1 . Engine 3 | 1 1 1 . Core . | . . . . Reactor . | . . . . Propulsion 6 | 2 4 . . Treads 6 | 2 4 . . Leg . | . . . . Wheel . | . . . . Hover . | . . . . Flight . | . . . . Utility 3 | 1 2 . . Device 1 | . 1 . . Storage 2 | 1 1 . . Processor . | . . . . Hackware . | . . . . Protection . | . . . . Artifact . | . . . . Weapon 8 | 2 6 . . Energy Gun 1 | . 1 . . Energy Cannon 2 | . 2 . . Ballistic Gun 5 | 2 3 . . Ballistic Cannon . | . . . . Launcher . | . . . . Special Weapon . | . . . . Impact Weapon . | . . . . Slashing Weapon . | . . . . Piercing Weapon . | . . . . Special Melee Weapon . | . . . . Unidentified Prototypes . | . . . . Parts Lost 1 | . . 1 . Power 1 | . . 1 . Propulsion . | . . . . Utility . | . . . . Weapon . | . . . . Highest Loss Streak 1 | . . 1 . To Critical Strikes . | . . . . Average Slot Usage (%) 90 | . 98 100 71 Engine 13 | . 13 14 14 Treads 28 | . 28 28 28 Device 13 | . 12 14 14 Storage 14 | . 14 14 14 Energy Gun 2 | . 4 . . Energy Cannon 7 | . 9 14 . Ballistic Gun 9 | . 13 14 . Naked Turns . | . . . . Heaviest Build 32 | 13 32 31 26 Greatest Support 40 | 40 40 40 40 Greatest Overweight (x) 4 | 4 . . . Average Overweight (x) . | . . . . Largest Inventory Capacity 15 | 8 15 15 15 Average Capacity 13 | 7 12 15 15 Most Carried 15 | 3 13 14 15 Average Carried 11 | 2 9 13 14 Final Capacity 15 | 8 15 15 15 Final Carried 15 | 3 13 14 15 Class Distribution -------------------- 100% | Mutant Dominant Class ---------------- Mutant | -10/Materials Mutant | -10/Mines Mutant | -10/Exiles Resources | -11 -10 -10 -10 ----------- Run | Yrd Mat Min Exi Matter Collected 773 | 226 355 192 . Remotely . | . . . . Salvage Created 794 | . 585 209 . Parts 39 | . 31 8 . Haulers Intercepted 2 | . 2 . . Recyclers Shooed 2 | . 1 1 . Parts Field Recycled . | . . . . Retrieved Matter . | . . . . Parts Self-Destructed . | . . . . Prevented . | . . . . Kills | -11 -10 -10 -10 ------- Run | Yrd Mat Min Exi Combat Hostiles Destroyed 17 | . 14 3 . Guns 10 | . 8 2 . Cannons 7 | . 6 1 . Classes Destroyed 6 | . 5 1 . Worker 3 | . 3 . . Hauler 2 | . 2 . . Recycler 2 | . . 2 . Operator 2 | . 2 . . Swarmer 7 | . 6 1 . Grunt 10 | . 8 2 . Best Kill Streak 6 | . 6 2 . Combat Bots Only 5 | . 5 2 . Max Kills in Single Turn 2 | . 2 1 . Gunslinging . | . . . . Exploded . | . . . . Melee . | . . . . Uniques/NPCs Destroyed . | . . . . Combat | -11 -10 -10 -10 -------- Run | Yrd Mat Min Exi Hostile Shots Fired 78 | . 63 15 . Missed 18 | . 15 3 . Damage Taken 927 | . 531 148 248 Core 252 | . 64 14 174 Absorbed by Shields . | . . . . Regen/Repaired (Parts) 54 | . 54 . . Core Remaining (%) 100 | 100 . . . Volleys Fired 66 | . 57 9 . Largest 2 | . 2 2 . Hottest 120 | . 120 80 . Shots Fired 132 | . 114 18 . Gun 90 | . 81 9 . Cannon 42 | . 33 9 . Launcher . | . . . . Special . | . . . . Kinetic 58 | . 49 9 . Thermal 74 | . 65 9 . Explosive . | . . . . Electromagnetic . | . . . . Robot Hit Streak 12 | . 12 10 . Robot Miss Streak 4 | . 4 1 . Penetration Max . | . . . . Secondary Targets . | . . . . Shots Hit Robots 88 | . 74 14 . Core Hits 37 | . 33 4 . Critical Kills . | . . . . Critical Parts Destroyed 1 | . 1 . . Critical Strikes 1 | . 1 . . Destroy 1 | . 1 . . Melee Attacks . | . . . . Impact . | . . . . Slashing . | . . . . Piercing . | . . . . Sneak Attacks . | . . . . Combat Hostiles . | . . . . Follow-up Attacks . | . . . . Damage Inflicted 1533 | . 1202 249 82 Guns 772 | . 677 95 . Cannons 568 | . 438 130 . Explosions . | . . . . Melee . | . . . . Ramming 193 | . 87 24 82 Kinetic 554 | . 459 95 . Thermal 786 | . 656 130 . Explosive . | . . . . Electromagnetic . | . . . . Impact . | . . . . Slashing . | . . . . Piercing . | . . . . Highest Corruption 23 | . 3 3 23 Average Corruption 3 | . 2 3 5 Corruption Purged . | . . . . Corruption Blocked . | . . . . Effects 43 | . 15 9 19 Message Errors 19 | . 4 4 11 Matter Fused 8 | . 4 1 3 Heat Flow Errors 3 | . 2 . 1 Energy Discharges 3 | . . 1 2 Data Loss (minor) 5 | . 3 2 . Data Loss (major) 4 | . 2 1 1 Alerts 1 | . . . 1 Overload Shots . | . . . . Overflow Damage 4 | . 3 1 . Projectiles 3 | . 3 . . Explosions . | . . . . Melee 1 | . . 1 . Knockbacks . | . . . . Impact . | . . . . Kinetic . | . . . . Secondary . | . . . . Self-Inflicted Damage 82 | . . . 82 Shots . | . . . . Rammed 18 | 1 14 3 . Targets Rammed 21 | 1 15 5 . Kicked . | . . . . Crushed 3 | . 1 2 . Highest Temperature 234 | . 234 19 108 Average Temperature 62 | . 68 6 59 Received Heat Transfer 339 | . 255 84 . Siege Activations . | . . . . Robots Corrupted . | . . . . Combat Hostiles . | . . . . Parts Fried . | . . . . Impact Corruptions 1 | . . 1 . Robots Melted . | . . . . Combat Hostiles . | . . . . Parts Melted 2 | . 1 1 . Heat Transferred 1647 | . 1388 259 . Parts Sabotaged . | . . . . Parts Stolen . | . . . . Parts Stripped . | . . . . Power Chain Reactions . | . . . . Alert | -11 -10 -10 -10 ------- Run | Yrd Mat Min Exi Peak Influence 249 | . 180 249 . Initial 37 | . . 37 . Average 121 | . 110 177 . Maximum Alert Level 1 | . . 1 . Low Security (%) 86 | 100 100 39 . Level 1 13 | . . 60 . Level 2 . | . . . . Level 3 . | . . . . Level 4 . | . . . . Level 5 . | . . . . High Security . | . . . . Max Security . | . . . . Squads Dispatched 2 | . 2 . . Investigation . | . . . . Extermination . | . . . . Reinforcement 2 | . 2 . . Assault . | . . . . Garrison . | . . . . Intercept . | . . . . Searches Triggered . | . . . . Construction Impeded . | . . . . Haulers Reinforced . | . . . . Active Scanning Responses . | . . . . Cargo Convoy Interrupts . | . . . . Stealth | -11 -10 -10 -10 --------- Run | Yrd Mat Min Exi Distress Signals 3 | . 3 . . Communications Jammed . | . . . . Distress Signals . | . . . . Times Spotted 37 | . 32 5 . Peak Tracking Total 5 | . 5 2 . Tactical Retreats 1 | . 1 . . Traps | -11 -10 -10 -10 ------- Run | Yrd Mat Min Exi Traps Triggered 2 | . 2 . . Indirectly . | . . . . Trap Hack Attempts . | . . . . Triggered . | . . . . Disarmed . | . . . . Reprogrammed . | . . . . Reused . | . . . . Traps Extracted . | . . . . Installed . | . . . . Triggered . | . . . . Machines | -11 -10 -10 -10 ---------- Run | Yrd Mat Min Exi Machines Disabled . | . . . . Max in Single Turn . | . . . . Machines Repaired . | . . . . Machines Dismantled . | . . . . Machines Sabotaged . | . . . . Overloaded Fab Kills . | . . . . Hacking | -11 -10 -10 -10 --------- Run | Yrd Mat Min Exi Machines Accessed 11 | . 7 . 4 Terminals 6 | . 6 . . Fabricators . | . . . . Repair Stations 1 | . 1 . . Recycling Units . | . . . . Scanalyzers . | . . . . Garrison Access . | . . . . Total Hacks 28 | . 24 . 4 Successful 18 | . 14 . 4 Failed 10 | . 10 . . Catastrophic . | . . . . Database Lockouts . | . . . . Manual 21 | . 21 . . Terminals 20 | . 20 . . Fabricators . | . . . . Repair Stations 4 | . 4 . . Recycling Units . | . . . . Scanalyzers . | . . . . Garrison Access . | . . . . Terminal Hacks 10 | . 6 . 4 Record 4 | . . . 4 Robot Analysis 2 | . 2 . . Branch Access Points 1 | . 1 . . Locate Traps 2 | . 2 . . Reinforcement Status 1 | . 1 . . Fabricator Hacks . | . . . . Repair Station Hacks 3 | . 3 . . Scan Component 2 | . 2 . . Repair 1 | . 1 . . Recycling Unit Hacks . | . . . . Scanalyzer . | . . . . Garrison Access Hacks . | . . . . Unauthorized Hacks 5 | . 5 . . Terminals 5 | . 5 . . Botnet 3 | . 3 . . Disrupt 1 | . 1 . . Operators 1 | . 1 . . Fabricators . | . . . . Repair Stations . | . . . . Recycling Units . | . . . . Scanalyzers . | . . . . Garrison Access . | . . . . Data Cores Recovered . | . . . . Used . | . . . . Hacking Detections 7 | . 7 . . Full Trace Events . | . . . . Feedback Events . | . . . . Feedback Blocked . | . . . . Robot Schematics Acquired . | . . . . Robots Built . | . . . . Authchips . | . . . . Time . | . . . . Total Robot Build Rating . | . . . . Part Schematics Acquired . | . . . . Parts Built . | . . . . Authchips . | . . . . Time . | . . . . Total Part Build Rating . | . . . . Parts Repaired 1 | . 1 . . Time 36 | . 36 . . Parts Recycled . | . . . . Recycled Matter . | . . . . Retrieved Matter . | . . . . Retrieved Components . | . . . . Parts Scanalyzed . | . . . . Part Schematics Acquired . | . . . . Parts Damaged . | . . . . Bothacking | -11 -10 -10 -10 ------------ Run | Yrd Mat Min Exi Used RIF Installer . | . . . . Robots Hacked . | . . . . Non-combat . | . . . . Combat . | . . . . Robot Hacks Applied . | . . . . Relay Couplers Released . | . . . . Fabnet Peak Effective % . | . . . . Robots Rewired . | . . . . Allies Hacked . | . . . . Hacks Repelled . | . . . . Allies | -11 -10 -10 -10 -------- Run | Yrd Mat Min Exi Total Allies 3 | . . 3 . Largest Group 3 | . . 3 3 Highest-Rated Group 40 | . . 40 40 Highest-Rated Ally 16 | . . 16 16 Total Orders . | . . . . Ally Attacks 16 | . . 16 . Total Damage 138 | . . 138 . Kills 5 | . . 5 . Allies Corrupted . | . . . . Allies Melted . | . . . . Intel | -11 -10 -10 -10 ------- Run | Yrd Mat Min Exi Robot Analysis Total 2 | . 2 . . Derelict Logs Recovered 1 | . . 1 . Drone Launches . | . . . . Drone Recoveries . | . . . . Exploration | -11 -10 -10 -10 ------------- Run | Yrd Mat Min Exi Turns Passed 2955 | 80 1538 466 871 Spaces Moved 1533 | 44 793 262 434 Core 14 | 14 . . . Treads 1519 | 30 793 262 434 Legs . | . . . . Wheels . | . . . . Hover . | . . . . Flight . | . . . . Fastest Speed 50 | 50 160 160 160 Average Speed 159 | 154 160 160 160 Slowest Speed 250 | 250 160 160 160 Overloaded Moves . | . . . . Propulsion Burnouts . | . . . . Robots Hopped . | . . . . Cave-ins Triggered . | . . . . Exploration Rate (%) 65 | 4 97 69 91 Regions Visited 3 Branch Regions 2 Pre-discovered Areas 1 | . . 1 . Known Exits Taken 1 | . 1 . . Unknown Exits Taken 2 | 1 . 1 . Scrap Searched 3 | . . 3 . Spaces Dug . | . . . . Terrain Destroyed . | . . . . Melee . | . . . . Projectile . | . . . . AOE . | . . . . Terrain Rammed 46 | . . . 46 Walls Destroyed . | . . . . Machines Disabled . | . . . . Actions | -11 -10 -10 -10 --------- Run | Yrd Mat Min Exi Total 1767 | 53 944 288 482 Wait 46 | . 36 10 . Move 1530 | 43 792 261 434 Hop . | . . . . Pick Up 22 | 3 17 2 . Fast Attach 9 | 6 3 . . Attach 1 | . . 1 . Detach 2 | . . . 2 Swap 10 | . 10 . . Drop 15 | . 14 . 1 Fire 66 | . 57 9 . Melee . | . . . . Ram 45 | . . . 45 Kick . | . . . . Crush 21 | 1 15 5 . Escape Stasis . | . . . . Rewire . | . . . . Trap . | . . . . Miscellaneous . | . . . . Route ------- -11/Scrapyard -10/Materials (discovered 4 exits: [*Mat x3] / *Min) -10/Mines (discovered 3 exits: [*Mat x2] / *Exi) -10/Exiles (discovered 1 exit: [*Min]) History --------- Turn | Location | Event 2 | -11/Scrapyard | Met Revision 17 14 | -11/Scrapyard | Discovered new exit (range 16) 81 | -11/Scrapyard | Entered Materials 279 | -10/Materials | Discovered new exit (range 12) 303 | -10/Materials | Build established: Mutant 552 | -10/Materials | Discovered new exit (range 16) 1072 | -10/Materials | Repaired Broken Ion Engine? 1101 | -10/Materials | Discovered new exit (range 11) 1106 | -10/Materials | Identified exit to Mines 1431 | -10/Materials | Discovered new exit (range 16) 1619 | -10/Materials | Entered Mines 1708 | -10/Mines | Assisted by bots powering up and referring to "LRC-V3" 1781 | -10/Mines | Discovered new exit (range 6) 1811 | -10/Mines | Discovered new exit (range 9) 1858 | -10/Mines | Learned location of Zion (-7) 2077 | -10/Mines | Deemed a non-threat by the Exiles lab entrance 2079 | -10/Mines | Discovered new exit (range 5) 2085 | -10/Mines | Entered Exiles 2085 | -10/Exiles | Found Exiles lab abandoned 2085 | -10/Exiles | Accompanied by 3 allies 2767 | -10/Exiles | Discovered new exit (range 14) 2795 | -10/Exiles | System corruption reached 10% 2822 | -10/Exiles | Core integrity fell below 50% 2872 | -10/Exiles | Core integrity fell below 20% 2956 | -10/Exiles | Core destroyed Last Messages --------------- Destabilizing: Core damaged (-10). Slammed into Wall. Destabilizing: Core damaged (-2). Slammed into Wall. Destabilizing: Core damaged (-2). Slammed into Wall. Destabilizing: System corrupted (+1). System corrupted: Matter fused (-6). Slammed into Wall. Destabilizing: System corrupted (+2). Slammed into Wall. Destabilizing: System corrupted (+1). Slammed into Wall. Destabilizing: System corrupted (+1). Slammed into Wall. Destabilizing: Core damaged (-10). System corrupted: Substantial component data lost. Slammed into Wall. Destabilizing: Core damaged (-5). Map ----- +----------------------------------------------------+ | | | ?????????????????????????????????????????? | | ?????????????????????????????????????????? | | ?????????????????????????????????????????? | | ?????????????????????????????????????????? | | ?????????????????????????????????????????? | | ?????????????????????????????????????????? | | ?????????????????????????????????????????? | | ?????????????????????????????????????????? | | ?????????????????????????????????????????? | | ?????????????????????????????????????????? | | ?????????????????????????????????????????? | | ?????????????????????????????????????????? | | ?????????????????????????????????????????? | | ?????????????????????????????????????????? | | ?????????????????????????????????????????? | | ?????????????????????????????????????????? | | ????????????????#####????????????????????? | | ???????????????## ##???????????????????? | | ???????????????# #???????????????????? | | ???????????????# < #???????????????????? | | ???????????????# ###?????????????????? | | ???????????????# g #?????????????????? | | ???????????????# #??????????????????? | | ????????????????# g #??????????????????? | | ????????????????#@g ##?????????????????? | | ????????????????## #????????????###### | | ?????????????????# #######??????# " | | ?????????????????# #""##?????# " | | ?????????????????## #?????# " | | ??????????????????##" ##???## "" | | ??????????????????#"" #####" "" | | ??????????????????#### ##" "" | | ?????????????????????## #"" #? | | ??????????????????????#"## #? | | ??????????????????????####### ## | | ????????????????????????????### "# | | ??????????????????????########" # | | ??????????????????????# !!""""" | | ??????????????????????# "###"" | | ??????????????????????#! "#?##" | | ??????????????????????#! ##??#" | | ??????????????????????# """"""###???#"# | | ??????????????????????##########?????#### | | ????????????????????????????????????????## | | ?????????????????????????????????????????? | | ?????????????????????????????????????????? | | ?????????????????????????????????????????? | | ?????????????????????????????????????????? | | ?????????????????????????????????????????? | +----------------------------------------------------+ Best States ------------- Heat Dissipation 39 Energy Generation 10 Energy Capacity 250 Matter Stores 300 Matter Capacity 300 Sight Range 16 Terrain Scan Density 10 Evasion (%) 40 Recoil Reduction 2 Item Schematics ----------------- None Robot Schematics ------------------ None Fabricated ------------ Nothing Alien Tech Used ----------------- None Achievements -------------- None Challenges ------------ None Game ------ Seed WeaponsTractorCharger Manual? 0 Play Time 00:18:14 Cumulative 30.2 hours Start 2024.04.08 @ 19:24:14 End 2024.04.08 @ 20:12:38 Sessions 2 Manual Loads 0 Difficulty Rogue Special Mode None Game No. 22 Rogue 22 Adventurer 0 Explorer 0 Win Type - Total 1 Types 1/0/0/0/0/0/0/0/0 Lore% 29 Gallery% 27 Achievement% 31 Wizard Run 0 Options --------- Layout 1 ASCII 0 Keyboard 0 Movement Arrows Keybinds 0 Fullscreen 1 Font 24/Smallcaps Map View 50x35 Zoom Use 0% Tactical HUD 0 Map Filters NONE Filters NONE Steam 1 RUN: 17c4d174-9619-490a-b8f8-d38b5d5e84e8